[Event "Late-Titled-Tuesday-Blitz-February-20-2024"]
[Site "Chess.com"]
[Date "2024.02.20"]
[Round "4"]
[White "bipe137"]
[Black "ProphetReborn"]
[Result "0-1"]
[WhiteElo "2534"]
[BlackElo "2845"]
[TimeControl "180+1"]
[EndTime "14:38:22 PST"]
[Termination "ProphetReborn won on time"]

1. d4 {[%clk 0:03:00.9]} 1... Nf6 {[%clk 0:02:54.2]} 2. c4 {[%clk 0:03:01]} 2...
e6 {[%clk 0:02:54]} 3. Nc3 {[%clk 0:03:01.4]} 3... Bb4 {[%clk 0:02:51.7]} 4. Qb3
{[%clk 0:03:01.4]} 4... c5 {[%clk 0:02:50.1]} 5. dxc5 {[%clk 0:02:50.6]} 5...
Qa5 {[%clk 0:02:49.8]} 6. Bd2 {[%clk 0:02:46.7]} 6... Na6 {[%clk 0:02:49.1]} 7.
a3 {[%clk 0:02:42.8]} 7... Bxc3 {[%clk 0:02:35.7]} 8. Bxc3 {[%clk 0:02:40.2]}
8... Nxc5 {[%clk 0:02:36.2]} 9. Qc2 {[%clk 0:02:37]} 9... Qa4 {[%clk 0:02:35.3]}
10. Qxa4 {[%clk 0:02:28.4]} 10... Nxa4 {[%clk 0:02:36.2]} 11. Bxf6 {[%clk
0:02:28.5]} 11... gxf6 {[%clk 0:02:36.9]} 12. O-O-O {[%clk 0:02:28.2]} 12... Ke7
{[%clk 0:02:32.9]} 13. e3 {[%clk 0:02:27.3]} 13... d6 {[%clk 0:02:33.2]} 14. Nf3
{[%clk 0:02:25.4]} 14... b6 {[%clk 0:02:33.4]} 15. b3 {[%clk 0:02:16.8]} 15...
Nc5 {[%clk 0:02:33.2]} 16. Nd2 {[%clk 0:02:09.4]} 16... Bb7 {[%clk 0:02:33.4]}
17. Rg1 {[%clk 0:02:01.1]} 17... Rhg8 {[%clk 0:02:33.7]} 18. Kb2 {[%clk
0:01:50.7]} 18... f5 {[%clk 0:02:32.5]} 19. b4 {[%clk 0:01:50.5]} 19... Nd7
{[%clk 0:02:32.4]} 20. f3 {[%clk 0:01:46.3]} 20... Ne5 {[%clk 0:02:32.5]} 21.
Be2 {[%clk 0:01:43.8]} 21... Rg6 {[%clk 0:02:30.3]} 22. f4 {[%clk 0:01:39.9]}
22... Ng4 {[%clk 0:02:26.8]} 23. Bxg4 {[%clk 0:01:38.5]} 23... Rxg4 {[%clk
0:02:27.7]} 24. g3 {[%clk 0:01:36.5]} 24... h5 {[%clk 0:02:28.3]} 25. Kc3 {[%clk
0:01:29.7]} 25... h4 {[%clk 0:02:27.8]} 26. gxh4 {[%clk 0:01:27.4]} 26... Rxh4
{[%clk 0:02:28.2]} 27. Nf1 {[%clk 0:01:27.7]} 27... Rc8 {[%clk 0:02:26]} 28. Kb3
{[%clk 0:01:15.5]} 28... Be4 {[%clk 0:02:17.8]} 29. Rd2 {[%clk 0:01:12.1]} 29...
d5 {[%clk 0:02:14.7]} 30. cxd5 {[%clk 0:01:09.7]} 30... Bxd5+ {[%clk 0:02:15.6]}
31. Kb2 {[%clk 0:01:09.5]} 31... Kf6 {[%clk 0:02:16.5]} 32. Ng3 {[%clk
0:01:07.8]} 32... Rch8 {[%clk 0:02:10.7]} 33. Nf1 {[%clk 0:00:59.7]} 33... Rh3
{[%clk 0:02:08.6]} 34. Rg3 {[%clk 0:00:57.7]} 34... R3h6 {[%clk 0:02:08.3]} 35.
Rc2 {[%clk 0:00:55.9]} 35... a5 {[%clk 0:02:06.6]} 36. bxa5 {[%clk 0:00:49.7]}
36... bxa5 {[%clk 0:02:07.5]} 37. Rc5 {[%clk 0:00:49.4]} 37... Rb8+ {[%clk
0:02:03.7]} 38. Kc2 {[%clk 0:00:46]} 38... Be4+ {[%clk 0:02:03.9]} 39. Kc3
{[%clk 0:00:43.3]} 39... a4 {[%clk 0:01:47.9]} 40. Nd2 {[%clk 0:00:41.8]} 40...
Rxh2 {[%clk 0:01:44.9]} 41. Rg1 {[%clk 0:00:30.4]} 41... Rd8 {[%clk 0:01:41.2]}
42. Nc4 {[%clk 0:00:27.3]} 42... Rc2+ {[%clk 0:01:34.7]} 43. Kb4 {[%clk
0:00:27.4]} 43... Rb8+ {[%clk 0:01:35.6]} 44. Kxa4 {[%clk 0:00:21.1]} 44... Rc3
{[%clk 0:01:15.8]} 45. Rc7 {[%clk 0:00:05.7]} 45... Bc2+ {[%clk 0:01:09.2]} 46.
Ka5 {[%clk 0:00:05.4]} 46... Bd3 {[%clk 0:01:10.1]} 47. Rxf7+ {[%clk 0:00:02]}
47... Kxf7 {[%clk 0:01:09.4]} 48. Ne5+ {[%clk 0:00:02.6]} 48... Ke7 {[%clk
0:01:01.5]} 49. Rg7+ {[%clk 0:00:01.5]} 49... Kf8 {[%clk 0:01:01.9]} 50. Rf7+
{[%clk 0:00:01.9]} 50... Ke8 {[%clk 0:01:01.5]} 51. Ka4 {[%clk 0:00:02.3]} 51...
Bc2+ {[%clk 0:01:01.3]} 0-1

[Event "Late-Titled-Tuesday-Blitz-February-20-2024"]
[Site "Chess.com"]
[Date "2024.02.20"]
[Round "4"]
[White "Marianov_Podstavnikov"]
[Black "Rutricks"]
[Result "0-1"]
[WhiteElo "2528"]
[BlackElo "2699"]
[TimeControl "180+1"]
[EndTime "14:38:26 PST"]
[Termination "Rutricks won by checkmate"]

1. e4 {[%clk 0:03:00.9]} 1... g6 {[%clk 0:03:00.4]} 2. d4 {[%clk 0:03:00.8]}
2... Bg7 {[%clk 0:03:00.7]} 3. Nf3 {[%clk 0:02:58.3]} 3... c6 {[%clk 0:03:01]}
4. Nc3 {[%clk 0:02:57.7]} 4... d5 {[%clk 0:03:00.7]} 5. h3 {[%clk 0:02:56.6]}
5... dxe4 {[%clk 0:03:01.6]} 6. Nxe4 {[%clk 0:02:57]} 6... Nf6 {[%clk
0:03:02.5]} 7. Nxf6+ {[%clk 0:02:57]} 7... exf6 {[%clk 0:03:03.4]} 8. Bc4 {[%clk
0:02:56.6]} 8... O-O {[%clk 0:03:04.3]} 9. O-O {[%clk 0:02:56.7]} 9... a5 {[%clk
0:03:05.2]} 10. a4 {[%clk 0:02:54]} 10... Na6 {[%clk 0:03:05.5]} 11. Re1 {[%clk
0:02:53.2]} 11... Nb4 {[%clk 0:03:05.3]} 12. c3 {[%clk 0:02:51.1]} 12... Nd5
{[%clk 0:03:05.8]} 13. Bd2 {[%clk 0:02:50.2]} 13... Be6 {[%clk 0:03:05.7]} 14.
Qe2 {[%clk 0:02:22.9]} 14... Re8 {[%clk 0:03:03.6]} 15. Qf1 {[%clk 0:02:20.4]}
15... Qd7 {[%clk 0:03:03.9]} 16. Rad1 {[%clk 0:02:18.9]} 16... Bf8 {[%clk
0:03:02.3]} 17. Bc1 {[%clk 0:02:16.7]} 17... Rab8 {[%clk 0:03:00.7]} 18. Nd2
{[%clk 0:02:13.8]} 18... b5 {[%clk 0:02:52.5]} 19. Bb3 {[%clk 0:02:10.3]} 19...
Bf5 {[%clk 0:02:27.6]} 20. g4 {[%clk 0:01:51]} 20... Be6 {[%clk 0:02:17.1]} 21.
Ne4 {[%clk 0:01:50.8]} 21... Be7 {[%clk 0:02:15.3]} 22. Qg2 {[%clk 0:01:43]}
22... f5 {[%clk 0:01:30.2]} 23. gxf5 {[%clk 0:01:43.2]} 23... Bxf5 {[%clk
0:01:30.3]} 24. Kh2 {[%clk 0:01:40.2]} 24... Bd8 {[%clk 0:01:08.2]} 25. Nc5
{[%clk 0:00:57.9]} 25... Qd6+ {[%clk 0:01:07.4]} 26. Qg3 {[%clk 0:00:54.2]}
26... Bc7 {[%clk 0:00:54.1]} 27. Bxd5 {[%clk 0:00:54]} 27... cxd5 {[%clk
0:00:40.1]} 28. f4 {[%clk 0:00:39.4]} 28... b4 {[%clk 0:00:37.4]} 29. Re5 {[%clk
0:00:36.2]} 29... Qf6 {[%clk 0:00:29]} 30. Rxd5 {[%clk 0:00:29.2]} 30... bxc3
{[%clk 0:00:26.2]} 31. bxc3 {[%clk 0:00:28.1]} 31... Rb1 {[%clk 0:00:25.6]} 32.
Re1 {[%clk 0:00:21.7]} 32... Rxe1 {[%clk 0:00:22.1]} 33. Qxe1 {[%clk 0:00:20.6]}
33... Bxf4+ {[%clk 0:00:20.4]} 34. Bxf4 {[%clk 0:00:14.4]} 34... Rxe1 {[%clk
0:00:20.1]} 35. Be5 {[%clk 0:00:14.8]} 35... Re2+ {[%clk 0:00:16.4]} 36. Kh1
{[%clk 0:00:12.3]} 36... Be4+ {[%clk 0:00:15.5]} 37. Nxe4 {[%clk 0:00:12.3]}
37... Qf3+ {[%clk 0:00:16]} 38. Kg1 {[%clk 0:00:12.2]} 38... Qg2# {[%clk
0:00:16.6]} 0-1

[Event "Late-Titled-Tuesday-Blitz-February-20-2024"]
[Site "Chess.com"]
[Date "2024.02.20"]
[Round "4"]
[White "The_Straightforward_Rook"]
[Black "YurasovMat-2012"]
[Result "1/2-1/2"]
[WhiteElo "2463"]
[BlackElo "2609"]
[TimeControl "180+1"]
[EndTime "14:38:26 PST"]
[Termination "Game drawn by repetition"]

1. Nf3 {[%clk 0:02:55.9]} 1... d5 {[%clk 0:02:58.4]} 2. d4 {[%clk 0:02:55.6]}
2... Nf6 {[%clk 0:02:58.2]} 3. e3 {[%clk 0:02:54.8]} 3... c5 {[%clk 0:02:55.9]}
4. c3 {[%clk 0:02:53.3]} 4... Nc6 {[%clk 0:02:56.2]} 5. dxc5 {[%clk 0:02:51.8]}
5... a5 {[%clk 0:02:54.6]} 6. Bb5 {[%clk 0:02:48.1]} 6... Qc7 {[%clk 0:02:48]}
7. Nbd2 {[%clk 0:02:44.1]} 7... e5 {[%clk 0:02:43.7]} 8. b4 {[%clk 0:02:36.4]}
8... Bd7 {[%clk 0:02:43.1]} 9. Bxc6 {[%clk 0:02:03.7]} 9... Bxc6 {[%clk
0:02:40.2]} 10. O-O {[%clk 0:02:02.5]} 10... h5 {[%clk 0:02:36.5]} 11. a4 {[%clk
0:01:57.7]} 11... axb4 {[%clk 0:02:31.3]} 12. cxb4 {[%clk 0:01:58.6]} 12... Ng4
{[%clk 0:02:30.8]} 13. g3 {[%clk 0:01:48.5]} 13... Be7 {[%clk 0:02:19.1]} 14.
Bb2 {[%clk 0:01:38.9]} 14... Bd7 {[%clk 0:02:18.4]} 15. e4 {[%clk 0:01:32.1]}
15... d4 {[%clk 0:02:15.5]} 16. Nc4 {[%clk 0:01:26.6]} 16... Be6 {[%clk
0:02:12.5]} 17. Nb6 {[%clk 0:01:21]} 17... Rd8 {[%clk 0:02:12.3]} 18. Qd3 {[%clk
0:01:15.5]} 18... Kf8 {[%clk 0:02:09]} 19. h3 {[%clk 0:01:09.6]} 19... Nf6
{[%clk 0:02:07.9]} 20. Kh2 {[%clk 0:01:07.8]} 20... Ng4+ {[%clk 0:02:04.1]} 21.
Kg2 {[%clk 0:01:05.3]} 21... Nh6 {[%clk 0:02:04]} 22. Rfe1 {[%clk 0:00:55.6]}
22... g5 {[%clk 0:02:03.6]} 23. Nd5 {[%clk 0:00:53.4]} 23... Bxd5 {[%clk
0:02:00.5]} 24. exd5 {[%clk 0:00:54.3]} 24... Rxd5 {[%clk 0:01:55.7]} 25. Qe4
{[%clk 0:00:54.7]} 25... Qd8 {[%clk 0:01:32.6]} 26. Nxe5 {[%clk 0:00:52]} 26...
Bf6 {[%clk 0:01:32.9]} 27. Nc4 {[%clk 0:00:45.5]} 27... Nf5 {[%clk 0:01:30.6]}
28. Rad1 {[%clk 0:00:42.3]} 28... Kg7 {[%clk 0:01:13.8]} 29. Nd6 {[%clk
0:00:42.6]} 29... Rxd6 {[%clk 0:01:10.1]} 30. cxd6 {[%clk 0:00:38.9]} 30... Qd7
{[%clk 0:01:10.4]} 31. Bxd4 {[%clk 0:00:35.9]} 31... Nxd4 {[%clk 0:01:04.6]} 32.
Rxd4 {[%clk 0:00:36.8]} 32... Bxd4 {[%clk 0:00:59.4]} 33. Qxd4+ {[%clk
0:00:37.7]} 33... Kg6 {[%clk 0:00:59.8]} 34. Qe4+ {[%clk 0:00:33.2]} 34... Kh6
{[%clk 0:00:52.2]} 35. h4 {[%clk 0:00:21.3]} 35... gxh4 {[%clk 0:00:44.8]} 36.
Qf4+ {[%clk 0:00:18.9]} 36... Kg6 {[%clk 0:00:43.8]} 37. Qe4+ {[%clk 0:00:15.3]}
37... Kg7 {[%clk 0:00:39]} 38. Qe5+ {[%clk 0:00:15.5]} 38... Kg6 {[%clk
0:00:39.1]} 39. Qe4+ {[%clk 0:00:15.3]} 39... Kg7 {[%clk 0:00:39.4]} 40. Qe5+
{[%clk 0:00:15.7]} 40... Kg6 {[%clk 0:00:39.6]} 41. Qxh8 {[%clk 0:00:16.3]}
41... Qc6+ {[%clk 0:00:35.1]} 42. Kg1 {[%clk 0:00:16.7]} 42... h3 {[%clk
0:00:34.3]} 43. Qg8+ {[%clk 0:00:16]} 43... Kh6 {[%clk 0:00:31.7]} 44. Qh8+
{[%clk 0:00:16.2]} 44... Kg6 {[%clk 0:00:31.9]} 45. Qg8+ {[%clk 0:00:15.1]}
45... Kh6 {[%clk 0:00:32.1]} 46. Qh8+ {[%clk 0:00:14.3]} 46... Kg6 {[%clk
0:00:32.3]} 1/2-1/2

[Event "Late-Titled-Tuesday-Blitz-February-20-2024"]
[Site "Chess.com"]
[Date "2024.02.20"]
[Round "4"]
[White "JonSnowNW1"]
[Black "miraitrunks"]
[Result "1-0"]
[WhiteElo "2496"]
[BlackElo "2198"]
[TimeControl "180+1"]
[EndTime "14:38:26 PST"]
[Termination "JonSnowNW1 won on time"]

1. c4 {[%clk 0:03:00.9]} 1... c5 {[%clk 0:02:44.2]} 2. Nc3 {[%clk 0:02:59.2]}
2... Nc6 {[%clk 0:02:43.7]} 3. g3 {[%clk 0:02:59.3]} 3... g6 {[%clk 0:02:43]} 4.
Bg2 {[%clk 0:02:57.6]} 4... Bg7 {[%clk 0:02:42.9]} 5. Nf3 {[%clk 0:02:56.2]}
5... e5 {[%clk 0:02:38]} 6. O-O {[%clk 0:02:55.5]} 6... d6 {[%clk 0:02:37.5]} 7.
Ne1 {[%clk 0:02:50.9]} 7... Be6 {[%clk 0:02:37]} 8. d3 {[%clk 0:02:51]} 8...
Nge7 {[%clk 0:02:36.4]} 9. Nc2 {[%clk 0:02:51.5]} 9... Qd7 {[%clk 0:02:35.2]}
10. Re1 {[%clk 0:02:46.8]} 10... Bh3 {[%clk 0:02:31]} 11. Bh1 {[%clk 0:02:45.9]}
11... O-O {[%clk 0:02:17.7]} 12. Ne3 {[%clk 0:02:45.8]} 12... f5 {[%clk
0:02:15.1]} 13. Ned5 {[%clk 0:02:31]} 13... Nxd5 {[%clk 0:01:41.5]} 14. cxd5
{[%clk 0:02:28.6]} 14... Ne7 {[%clk 0:01:38.7]} 15. e3 {[%clk 0:02:28.3]} 15...
g5 {[%clk 0:01:31.5]} 16. Qh5 {[%clk 0:01:42.3]} 16... g4 {[%clk 0:01:19.5]} 17.
d4 {[%clk 0:01:11.2]} 17... Rf6 {[%clk 0:01:07.7]} 18. dxe5 {[%clk 0:01:02.7]}
18... dxe5 {[%clk 0:01:05.4]} 19. e4 {[%clk 0:01:01]} 19... f4 {[%clk
0:01:05.2]} 20. gxf4 {[%clk 0:00:46.5]} 20... exf4 {[%clk 0:00:41.3]} 21. e5
{[%clk 0:00:46.6]} 21... Rf5 {[%clk 0:00:31.6]} 22. e6 {[%clk 0:00:25.8]} 22...
Qd8 {[%clk 0:00:28]} 23. Qh4 {[%clk 0:00:24.3]} 23... Qc7 {[%clk 0:00:19.5]} 24.
Nb5 {[%clk 0:00:15.1]} 24... Qb6 {[%clk 0:00:12]} 25. Qxe7 {[%clk 0:00:14.7]}
1-0

[Event "Late-Titled-Tuesday-Blitz-February-20-2024"]
[Site "Chess.com"]
[Date "2024.02.20"]
[Round "4"]
[White "Antipov_Mikhail_Al"]
[Black "MrKGG1"]
[Result "1-0"]
[WhiteElo "2954"]
[BlackElo "2589"]
[TimeControl "180+1"]
[EndTime "14:38:28 PST"]
[Termination "Antipov_Mikhail_Al won by checkmate"]

1. e4 {[%clk 0:03:00.9]} 1... e6 {[%clk 0:02:55.4]} 2. d4 {[%clk 0:02:54.3]}
2... d5 {[%clk 0:02:55.4]} 3. Nd2 {[%clk 0:02:53.5]} 3... c5 {[%clk 0:02:53.4]}
4. Ngf3 {[%clk 0:02:53.4]} 4... cxd4 {[%clk 0:02:49.7]} 5. exd5 {[%clk
0:02:53.5]} 5... Qxd5 {[%clk 0:02:50.5]} 6. Bc4 {[%clk 0:02:53.8]} 6... Qd7
{[%clk 0:02:49.2]} 7. O-O {[%clk 0:02:52.2]} 7... a6 {[%clk 0:02:49.1]} 8. a4
{[%clk 0:02:49.8]} 8... Nc6 {[%clk 0:02:37.4]} 9. Nb3 {[%clk 0:02:49.1]} 9...
Nf6 {[%clk 0:02:32.9]} 10. Qe2 {[%clk 0:02:48.9]} 10... Qc7 {[%clk 0:02:04]} 11.
Rd1 {[%clk 0:02:44.9]} 11... Bd6 {[%clk 0:01:57.4]} 12. Nbxd4 {[%clk 0:02:43.8]}
12... Nxd4 {[%clk 0:01:56.4]} 13. Rxd4 {[%clk 0:02:44.7]} 13... O-O {[%clk
0:01:54.5]} 14. b3 {[%clk 0:01:52.1]} 14... Bc5 {[%clk 0:01:43.1]} 15. Bf4
{[%clk 0:01:47.5]} 15... Qe7 {[%clk 0:01:36.4]} 16. Rd2 {[%clk 0:01:32.9]} 16...
b6 {[%clk 0:01:26.4]} 17. Ne5 {[%clk 0:01:28]} 17... Bb7 {[%clk 0:01:24]} 18.
Bg5 {[%clk 0:01:24]} 18... Qc7 {[%clk 0:01:04.9]} 19. Bxf6 {[%clk 0:01:09.9]}
19... gxf6 {[%clk 0:01:04.6]} 20. Nd7 {[%clk 0:01:03.5]} 20... Qc6 {[%clk
0:00:51.1]} 21. Qf1 {[%clk 0:00:21.2]} 21... Rfd8 {[%clk 0:00:46.7]} 22. Rad1
{[%clk 0:00:20.7]} 22... Kg7 {[%clk 0:00:44.3]} 23. Rd3 {[%clk 0:00:17.6]} 23...
f5 {[%clk 0:00:41]} 24. Rg3+ {[%clk 0:00:15.9]} 24... Kh8 {[%clk 0:00:40.5]} 25.
Qd3 {[%clk 0:00:16.8]} 25... f6 {[%clk 0:00:17.6]} 26. Qd2 {[%clk 0:00:04.4]}
26... e5 {[%clk 0:00:06.6]} 27. Qh6 {[%clk 0:00:03.3]} 27... Rg8 {[%clk
0:00:03]} 28. Bxg8 {[%clk 0:00:02.3]} 28... Rxg8 {[%clk 0:00:03.9]} 29. Nxf6
{[%clk 0:00:02.6]} 29... Rxg3 {[%clk 0:00:01.6]} 30. Qxh7# {[%clk 0:00:02.9]}
1-0

[Event "Late-Titled-Tuesday-Blitz-February-20-2024"]
[Site "Chess.com"]
[Date "2024.02.20"]
[Round "4"]
[White "Atanejhad"]
[Black "TheMagician"]
[Result "1-0"]
[WhiteElo "2436"]
[BlackElo "2201"]
[TimeControl "180+1"]
[EndTime "14:38:28 PST"]
[Termination "Atanejhad won on time"]

1. d4 {[%clk 0:03:00.9]} 1... Nf6 {[%clk 0:02:54.6]} 2. c4 {[%clk 0:03:01.3]}
2... d6 {[%clk 0:02:54.1]} 3. Nc3 {[%clk 0:03:01.2]} 3... g6 {[%clk 0:02:51.7]}
4. e4 {[%clk 0:03:01.5]} 4... Bg7 {[%clk 0:02:50.6]} 5. f3 {[%clk 0:03:01.9]}
5... O-O {[%clk 0:02:49.5]} 6. Be3 {[%clk 0:03:02.5]} 6... Nc6 {[%clk
0:02:42.6]} 7. Nge2 {[%clk 0:03:01]} 7... e5 {[%clk 0:02:42.4]} 8. d5 {[%clk
0:03:00.7]} 8... Ne7 {[%clk 0:02:36.7]} 9. Qd2 {[%clk 0:03:01.1]} 9... Nh5
{[%clk 0:02:36.8]} 10. g4 {[%clk 0:03:00.1]} 10... Nf4 {[%clk 0:02:36.3]} 11.
Nxf4 {[%clk 0:02:59.1]} 11... exf4 {[%clk 0:02:36.5]} 12. Bxf4 {[%clk
0:02:59.7]} 12... f5 {[%clk 0:02:32.7]} 13. gxf5 {[%clk 0:03:00.6]} 13... gxf5
{[%clk 0:02:30.6]} 14. O-O-O {[%clk 0:03:00]} 14... Ng6 {[%clk 0:02:21.9]} 15.
Bg5 {[%clk 0:02:57.6]} 15... Qe8 {[%clk 0:02:19.4]} 16. h4 {[%clk 0:02:53.2]}
16... f4 {[%clk 0:02:04.9]} 17. h5 {[%clk 0:02:44.6]} 17... Ne5 {[%clk 0:02:05]}
18. Be2 {[%clk 0:02:44.6]} 18... h6 {[%clk 0:01:47.2]} 19. Bxf4 {[%clk
0:02:41.1]} 19... Rf6 {[%clk 0:01:28.7]} 20. Rdg1 {[%clk 0:02:37.5]} 20... Kh8
{[%clk 0:01:23.6]} 21. Be3 {[%clk 0:02:23.4]} 21... Bd7 {[%clk 0:01:14.9]} 22.
f4 {[%clk 0:02:22.6]} 22... Nf7 {[%clk 0:01:14]} 23. Rxg7 {[%clk 0:02:18.4]}
23... Kxg7 {[%clk 0:01:11.9]} 24. Bd4 {[%clk 0:02:18.9]} 24... Qe7 {[%clk
0:01:03]} 25. Bd3 {[%clk 0:01:54.6]} 25... Rg8 {[%clk 0:00:58.7]} 26. Rg1+
{[%clk 0:01:43.5]} 26... Kf8 {[%clk 0:00:58.3]} 27. Rxg8+ {[%clk 0:01:42.9]}
27... Kxg8 {[%clk 0:00:58.5]} 28. Qg2+ {[%clk 0:01:42.2]} 28... Kf8 {[%clk
0:00:55.9]} 29. Bxf6 {[%clk 0:01:41.8]} 29... Qxf6 {[%clk 0:00:55.4]} 30. Qg3
{[%clk 0:01:39.8]} 30... b6 {[%clk 0:00:47.6]} 31. Kc2 {[%clk 0:01:38.7]} 31...
a5 {[%clk 0:00:46.7]} 32. b3 {[%clk 0:01:37.4]} 32... Ke7 {[%clk 0:00:46]} 33.
a3 {[%clk 0:01:36.8]} 33... Kd8 {[%clk 0:00:45.9]} 34. b4 {[%clk 0:01:36.3]}
34... axb4 {[%clk 0:00:45]} 35. axb4 {[%clk 0:01:37.2]} 35... Kc8 {[%clk
0:00:45]} 36. c5 {[%clk 0:01:26.4]} 36... bxc5 {[%clk 0:00:41.6]} 37. bxc5
{[%clk 0:01:27.3]} 37... Be8 {[%clk 0:00:32.2]} 38. Qg4+ {[%clk 0:01:21.3]}
38... Kd8 {[%clk 0:00:24.8]} 39. cxd6 {[%clk 0:01:17.5]} 39... cxd6 {[%clk
0:00:24]} 40. Ba6 {[%clk 0:01:14.1]} 40... Qd4 {[%clk 0:00:15.9]} 41. Qh4+
{[%clk 0:01:08.6]} 41... Kc7 {[%clk 0:00:07.4]} 42. Qe7+ {[%clk 0:01:05.1]}
42... Kb6 {[%clk 0:00:07]} 43. Qb7+ {[%clk 0:01:03.6]} 43... Ka5 {[%clk
0:00:03.9]} 44. Bb5 {[%clk 0:00:54.4]} 1-0

[Event "Late-Titled-Tuesday-Blitz-February-20-2024"]
[Site "Chess.com"]
[Date "2024.02.20"]
[Round "4"]
[White "laziestwin"]
[Black "DarkAlekhine"]
[Result "0-1"]
[WhiteElo "2559"]
[BlackElo "2834"]
[TimeControl "180+1"]
[EndTime "14:38:30 PST"]
[Termination "DarkAlekhine won on time"]

1. d4 {[%clk 0:03:00.9]} 1... Nf6 {[%clk 0:02:59]} 2. c4 {[%clk 0:02:56.6]} 2...
c5 {[%clk 0:02:59.4]} 3. d5 {[%clk 0:02:56.3]} 3... b5 {[%clk 0:03:00.1]} 4.
cxb5 {[%clk 0:02:56.2]} 4... a6 {[%clk 0:03:00.8]} 5. bxa6 {[%clk 0:02:56.5]}
5... Bxa6 {[%clk 0:03:01.7]} 6. Nc3 {[%clk 0:02:56.6]} 6... d6 {[%clk
0:03:01.9]} 7. Nf3 {[%clk 0:02:53.8]} 7... g6 {[%clk 0:03:02]} 8. e4 {[%clk
0:02:51.5]} 8... Bxf1 {[%clk 0:03:01.6]} 9. Kxf1 {[%clk 0:02:52.4]} 9... Bg7
{[%clk 0:03:02.3]} 10. g3 {[%clk 0:02:53]} 10... O-O {[%clk 0:03:02.8]} 11. Kg2
{[%clk 0:02:53.7]} 11... Nbd7 {[%clk 0:03:03.1]} 12. a4 {[%clk 0:02:51.5]} 12...
Ne8 {[%clk 0:03:03.2]} 13. Re1 {[%clk 0:02:49.3]} 13... Qb6 {[%clk 0:02:56.5]}
14. Qc2 {[%clk 0:02:46.9]} 14... Nc7 {[%clk 0:02:55.9]} 15. Bg5 {[%clk
0:02:43.9]} 15... Rfe8 {[%clk 0:02:52.1]} 16. Bf4 {[%clk 0:02:28.1]} 16... Reb8
{[%clk 0:02:47.7]} 17. e5 {[%clk 0:02:10.7]} 17... Qxb2 {[%clk 0:02:42.2]} 18.
Qxb2 {[%clk 0:02:10]} 18... Rxb2 {[%clk 0:02:43.1]} 19. exd6 {[%clk 0:01:58.1]}
19... exd6 {[%clk 0:02:42.8]} 20. Ne4 {[%clk 0:01:49.1]} 20... Nxd5 {[%clk
0:02:40.7]} 21. Bxd6 {[%clk 0:01:48.9]} 21... c4 {[%clk 0:02:31.9]} 22. Rac1
{[%clk 0:01:06.8]} 22... c3 {[%clk 0:02:16.1]} 23. Kg1 {[%clk 0:00:45.5]} 23...
h6 {[%clk 0:02:09.2]} 24. Red1 {[%clk 0:00:40]} 24... N7b6 {[%clk 0:02:09.2]}
25. Be5 {[%clk 0:00:33.2]} 25... Bxe5 {[%clk 0:01:32]} 26. Nxe5 {[%clk
0:00:34.1]} 26... Re2 {[%clk 0:01:31.4]} 27. Re1 {[%clk 0:00:07.5]} 27... Rxe1+
{[%clk 0:01:29.7]} 28. Rxe1 {[%clk 0:00:08.4]} 28... Rxa4 {[%clk 0:01:29.8]} 29.
Nd3 {[%clk 0:00:06.2]} 29... Rd4 {[%clk 0:01:24.7]} 30. Ndc5 {[%clk 0:00:02.8]}
30... c2 {[%clk 0:01:20.6]} 31. Nb3 {[%clk 0:00:02.9]} 31... Rd1 {[%clk
0:01:11.4]} 32. Kf1 {[%clk 0:00:03.5]} 32... Nc4 {[%clk 0:00:45.6]} 33. Ke2
{[%clk 0:00:02.8]} 33... f5 {[%clk 0:00:45.1]} 34. Rxd1 {[%clk 0:00:01]} 34...
cxd1=Q+ {[%clk 0:00:44.8]} 35. Kxd1 {[%clk 0:00:01.9]} 35... fxe4 {[%clk
0:00:45.3]} 36. Ke2 {[%clk 0:00:02.8]} 36... Kf7 {[%clk 0:00:44.7]} 37. Nc5
{[%clk 0:00:03.5]} 37... Nd6 {[%clk 0:00:44.7]} 38. Nd7 {[%clk 0:00:02]} 38...
Ke6 {[%clk 0:00:42.5]} 39. Nf8+ {[%clk 0:00:02.3]} 39... Kf6 {[%clk 0:00:43]}
40. Nd7+ {[%clk 0:00:02.7]} 40... Kf5 {[%clk 0:00:43.4]} 41. Nf8 {[%clk
0:00:03]} 41... Nf6 {[%clk 0:00:39.2]} 42. h3 {[%clk 0:00:02.5]} 42... h5 {[%clk
0:00:39.5]} 43. Ke3 {[%clk 0:00:01.8]} 43... Nc4+ {[%clk 0:00:39.2]} 44. Kd4
{[%clk 0:00:01.9]} 44... Ne5 {[%clk 0:00:37.6]} 0-1

[Event "Late-Titled-Tuesday-Blitz-February-20-2024"]
[Site "Chess.com"]
[Date "2024.02.20"]
[Round "4"]
[White "shirovin"]
[Black "NowInChess"]
[Result "1-0"]
[WhiteElo "2100"]
[BlackElo "2284"]
[TimeControl "180+1"]
[EndTime "14:38:32 PST"]
[Termination "shirovin won on time"]

1. e4 {[%clk 0:03:00.9]} 1... e6 {[%clk 0:02:59.9]} 2. d3 {[%clk 0:03:00.2]}
2... d5 {[%clk 0:03:00.1]} 3. Nd2 {[%clk 0:02:59]} 3... Nf6 {[%clk 0:02:59.5]}
4. Ngf3 {[%clk 0:02:58.9]} 4... c5 {[%clk 0:02:59.5]} 5. g3 {[%clk 0:02:58.6]}
5... Nc6 {[%clk 0:02:59.5]} 6. Bg2 {[%clk 0:02:59]} 6... g6 {[%clk 0:02:59.8]}
7. O-O {[%clk 0:02:58.9]} 7... Bg7 {[%clk 0:02:59.9]} 8. Re1 {[%clk 0:02:54.6]}
8... O-O {[%clk 0:02:58.8]} 9. c3 {[%clk 0:02:50.7]} 9... dxe4 {[%clk
0:02:58.5]} 10. dxe4 {[%clk 0:02:49.5]} 10... Qc7 {[%clk 0:02:50]} 11. Nc4
{[%clk 0:02:42.3]} 11... b5 {[%clk 0:02:45.9]} 12. Bf4 {[%clk 0:02:39.9]} 12...
Qd8 {[%clk 0:02:12.5]} 13. Nd6 {[%clk 0:02:37.6]} 13... Nh5 {[%clk 0:01:54.1]}
14. Bg5 {[%clk 0:02:30.5]} 14... Qb6 {[%clk 0:01:46.7]} 15. Nxc8 {[%clk
0:02:01.3]} 15... Raxc8 {[%clk 0:01:44.1]} 16. e5 {[%clk 0:02:01.3]} 16... h6
{[%clk 0:01:35]} 17. g4 {[%clk 0:01:50]} 17... hxg5 {[%clk 0:01:30.4]} 18. gxh5
{[%clk 0:01:49.5]} 18... g4 {[%clk 0:01:19.9]} 19. Nd2 {[%clk 0:01:41]} 19...
gxh5 {[%clk 0:01:17.6]} 20. f3 {[%clk 0:01:28.4]} 20... Nxe5 {[%clk 0:01:11.5]}
21. fxg4 {[%clk 0:01:17.4]} 21... c4+ {[%clk 0:01:10.1]} 22. Kh1 {[%clk
0:01:15.8]} 22... Nxg4 {[%clk 0:01:04.8]} 23. Qf3 {[%clk 0:01:02]} 23... Nf2+
{[%clk 0:00:56.1]} 24. Kg1 {[%clk 0:01:01.2]} 24... Nd3+ {[%clk 0:00:49.4]} 25.
Kh1 {[%clk 0:00:59.5]} 25... Nxe1 {[%clk 0:00:47.5]} 26. Rxe1 {[%clk 0:00:58.4]}
26... Rcd8 {[%clk 0:00:47.5]} 27. Ne4 {[%clk 0:00:56.9]} 27... Rd3 {[%clk
0:00:34.9]} 28. Qxh5 {[%clk 0:00:54.1]} 28... Re3 {[%clk 0:00:29.5]} 29. Rg1
{[%clk 0:00:38.7]} 29... Qd8 {[%clk 0:00:17.4]} 30. Ng5 {[%clk 0:00:35.2]} 30...
Re8 {[%clk 0:00:12.7]} 31. Qxf7+ {[%clk 0:00:34.2]} 31... Kh8 {[%clk 0:00:11.9]}
32. Qg6 {[%clk 0:00:25.2]} 32... Kg8 {[%clk 0:00:08.2]} 33. Be4 {[%clk 0:00:23]}
33... Rxe4 {[%clk 0:00:04.5]} 34. Nxe4 {[%clk 0:00:20.8]} 34... Qe7 {[%clk
0:00:02.9]} 35. Nf6+ {[%clk 0:00:18.3]} 35... Kf8 {[%clk 0:00:01.2]} 36. Nxe8
{[%clk 0:00:17]} 1-0